lending/lending_fUSD_20250706
["ID","MTS","AMOUNT","RATE_DAILY","PERIOD"]
[369987858,1751813438725,-460.0,0.00019178,2]
[369987860,1751813438734,-460.0,0.00019178,2]
[369987862,1751813438743,-460.0,0.00019178,2]
[369987864,1751813438753,-460.0,0.00019178,2]
[369987866,1751813438762,-787.81,0.00019178,2]
[369987868,1751813438771,-460.0,0.00019178,2]
[369987870,1751813438781,-460.0,0.00019178,2]
[369987871,1751813438790,-171.49141409,0.00019178,2]
[369987874,1751813438802,-292.89719629,0.00019178,2]
[369987876,1751813438811,-281.89266115,0.00019178,2]
[369987878,1751813438821,-460.0,0.00019178,2]
[369987879,1751813438830,-460.0,0.00019178,2]
[369987881,1751813438839,-527.97,0.00019178,2]
[369987884,1751813438849,-1220.98,0.00019178,2]
[369987885,1751813438858,-460.0,0.00019178,2]
[369987887,1751813438867,-630.99,0.00019178,2]
[369987889,1751813438876,-98.39129902,0.00019178,2]
[369987892,1751813438888,-432.55870098,0.00019178,2]
[369987894,1751813438897,-460.0,0.00019178,2]
[369987896,1751813438907,-211.14130152,0.00019178,2]
[369987908,1751813439021,-248.85869848,0.00019178,2]
[369987910,1751813439031,-328.62951003,0.00019178,2]
[369988068,1751813440534,-229.24469973,0.00019178,2]
[369988070,1751813440544,-460.0,0.00019178,2]
[369988072,1751813440554,-460.0,0.00019178,2]
[369988073,1751813440563,-460.0,0.00019178,2]
[369988074,1751813440572,-709.09,0.00019178,2]
[369988075,1751813440581,-580.96,0.00019178,2]
[369988076,1751813440591,-460.0,0.00019178,2]
[369988077,1751813440600,-659.37,0.00019178,2]
[369988078,1751813440609,-460.0,0.00019178,2]
[369988079,1751813440619,-255.70663187,0.00019178,2]
[369988080,1751813440628,-271.62866839,0.00019178,2]
[369988081,1751813440639,-188.37133161,0.00019178,2]
[369988082,1751813440648,-460.0,0.00019178,2]
[369988083,1751813440658,-460.0,0.00019178,2]
[369988084,1751813440667,-460.0,0.00019178,2]
[369988085,1751813440676,-324.56867604,0.00019178,2]
[369988087,1751813440692,-135.43132396,0.00019178,2]
[369988089,1751813440701,-467.42560354,0.00019178,2]
[369988091,1751813440710,-2509.18,0.00019178,2]
[369988093,1751813440721,-460.0,0.00019178,2]
[369988095,1751813440730,-460.0,0.00019178,2]
[369988097,1751813440739,-460.0,0.00019178,2]
[369988099,1751813440748,-460.0,0.00019178,2]
[369988101,1751813440758,-460.0,0.00019178,2]
[369988103,1751813440767,-690.89,0.00019178,2]
[369988105,1751813440776,-386.38961448,0.00019178,2]
[369988107,1751813440785,-676.2,0.00019178,2]
[369988109,1751813440794,-460.0,0.00019178,2]
[369988111,1751813440803,-460.0,0.00019178,2]
[369988112,1751813440812,-220.0,0.00019178,2]
[369988114,1751813440822,-460.0,0.00019178,2]
[369988116,1751813440831,-258.92616822,0.00019178,2]
[369988157,1751813441228,569.94,0.00030137,120]
[369988435,1751813444297,-201.07383178,0.00019178,2]
[369988437,1751813444306,-460.0,0.00019178,2]
[369988439,1751813444316,-460.0,0.00019178,2]
[369988441,1751813444325,-460.0,0.00019178,2]
[369988443,1751813444334,-460.0,0.00019178,2]
[369988445,1751813444344,-616.19,0.00019178,2]
[369988447,1751813444354,-460.0,0.00019178,2]
[369988449,1751813444363,-941.09,0.00019178,2]
[369988451,1751813444373,-460.0,0.00019178,2]
[369988453,1751813444383,-460.0,0.00019178,2]
[369988455,1751813444392,-460.0,0.00019178,2]
[369988457,1751813444401,-460.0,0.00019178,2]
[369988459,1751813444411,-460.0,0.00019178,2]
[369988461,1751813444421,-460.0,0.00019178,2]
[369988463,1751813444430,-460.0,0.00019178,2]
[369988465,1751813444440,-460.0,0.00019178,2]
[369988467,1751813444450,-460.0,0.00019178,2]
[369988469,1751813444459,-8074.75,0.00019178,2]
[369988471,1751813444468,-460.0,0.00019178,2]
[369988473,1751813444477,-1026.92,0.00019178,2]
[369988475,1751813444487,-474.72354986,0.00019178,2]
[369988477,1751813444497,-460.0,0.00019178,2]
[369988479,1751813444506,-460.0,0.00019178,2]
[369988481,1751813444515,-460.0,0.00019178,2]
[369988483,1751813444527,-537.61,0.00019178,2]
[369988485,1751813444537,-460.0,0.00019178,2]
[369988487,1751813444547,-460.4,0.00019178,2]
[369988488,1751813444556,-460.0,0.00019178,2]
[369988489,1751813444565,-460.0,0.00019178,2]
[369988491,1751813444574,-460.0,0.00019178,2]
[369988493,1751813444584,-726.16,0.00019178,2]
[369988495,1751813444593,-460.0,0.00019178,2]
[369988497,1751813444602,-474.42,0.00019178,2]
[369988499,1751813444613,-3300.76,0.00019178,2]
[369988501,1751813444622,-460.0,0.00019178,2]
[369988503,1751813444631,-460.0,0.00019178,2]
[369988505,1751813444641,-460.0,0.00019178,2]
[369988507,1751813444650,-855.47,0.00019178,2]
[369988509,1751813444659,-460.0,0.00019178,2]
[369988511,1751813444669,-460.0,0.00019178,2]
[369988512,1751813444678,-460.0,0.00019178,2]
[369988514,1751813444687,-719.14,0.00019178,2]
[369988516,1751813444697,-360.98545135,0.00019178,2]
[369988518,1751813444706,-460.0,0.00019178,2]
[369988520,1751813444715,-699.3,0.00019178,2]
[369988522,1751813444725,-460.0,0.00019178,2]
[369988524,1751813444735,-505.98,0.00019178,2]
[369988526,1751813444746,-460.0,0.00019178,2]
[369988528,1751813444756,-460.0,0.00019178,2]
[369988530,1751813444766,-642.45,0.00019178,2]
[369988532,1751813444776,-585.28,0.00019178,2]
[369988534,1751813444785,-460.0,0.00019178,2]
[369988536,1751813444795,-460.0,0.00019178,2]
[369988538,1751813444804,-460.0,0.00019178,2]
[369988540,1751813444813,-480.26,0.00019178,2]
[369988542,1751813444823,-460.0,0.00019178,2]
[369988544,1751813444832,-1493.55,0.00019178,2]
[369988546,1751813444842,-989.3,0.00019178,2]
[369988547,1751813444852,-460.0,0.00019178,2]
[369988549,1751813444862,-864.22,0.00019178,2]
[369988551,1751813444871,-460.0,0.00019178,2]
[369988553,1751813444880,-460.0,0.00019178,2]
[369988555,1751813444889,-2744.42,0.00019178,2]
[369988557,1751813444901,-460.0,0.00019178,2]
[369988559,1751813444910,-138.44790817,0.00019178,2]
[369988563,1751813444938,-986.81209183,0.00019178,2]
[369988565,1751813444947,-460.0,0.00019178,2]
[369988567,1751813444956,-460.0,0.00019178,2]
[369988569,1751813444966,-463.58,0.00019178,2]
[369988571,1751813444976,-460.0,0.00019178,2]
[369988573,1751813444986,-460.0,0.00019178,2]
[369988575,1751813444996,-460.0,0.00019178,2]
[369988577,1751813445006,-460.0,0.00019178,2]
[369988579,1751813445015,-460.0,0.00019178,2]
[369988581,1751813445024,-1213.41,0.00019178,2]
[369988583,1751813445033,-460.0,0.00019178,2]
[369988585,1751813445042,-500.0,0.00019178,2]
[369988587,1751813445051,-638.19,0.00019178,2]
[369988589,1751813445061,-500.0,0.00019178,2]
[369988591,1751813445069,-460.0,0.00019178,2]
[369988592,1751813445078,-460.0,0.00019178,2]
[369988595,1751813445089,-460.0,0.00019178,2]
[369988596,1751813445098,-684.68,0.00019178,2]
[369988598,1751813445107,-460.0,0.00019178,2]
[369988600,1751813445116,-465.73281276,0.00019178,2]
[369988602,1751813445126,-460.0,0.00019178,2]
[369988604,1751813445135,-1882.53,0.00019178,2]
[369988606,1751813445145,-460.0,0.00019178,2]
[369988608,1751813445154,-1182.82,0.00019178,2]
[369988610,1751813445166,-460.0,0.00019178,2]
[369988612,1751813445176,-460.0,0.00019178,2]
[369988614,1751813445186,-460.0,0.00019178,2]
[369988616,1751813445196,-1171.41,0.00019178,2]
[369988618,1751813445206,-582.03,0.00019178,2]
[369988620,1751813445215,-498.12990698,0.00019178,2]
[369988622,1751813445226,-1169.09,0.00019178,2]
[369988624,1751813445236,-693.03,0.00019178,2]
[369988626,1751813445245,-798.68,0.00019178,2]
[369988628,1751813445254,-460.0,0.00019178,2]
[369988630,1751813445264,-460.0,0.00019178,2]
[369988632,1751813445274,-460.0,0.00019178,2]
[369988634,1751813445283,-460.0,0.00019178,2]
[369988636,1751813445293,-460.0,0.00019178,2]
[369988638,1751813445303,-696.38,0.00019178,2]
[369988640,1751813445312,-311.4882704,0.00019178,2]
[369988642,1751813445321,-460.0,0.00019178,2]
[369988644,1751813445330,-1723.99,0.00019178,2]
[369988646,1751813445339,-460.0,0.00019178,2]
[369988648,1751813445348,-1161.67,0.00019178,2]
[369988649,1751813445357,-460.0,0.00019178,2]
[369988651,1751813445367,-460.0,0.00019178,2]
[369988653,1751813445376,-460.0,0.00019178,2]
[369988655,1751813445385,-485.78,0.00019178,2]
[369988657,1751813445394,-467.64116774,0.00019178,2]
[369988659,1751813445403,-460.0,0.00019178,2]
[369988661,1751813445413,-644.39,0.00019178,2]
[369988663,1751813445422,-546.01,0.00019178,2]
[369988665,1751813445433,-711.76,0.00019178,2]
[369988667,1751813445442,-811.89,0.00019178,2]
[369988669,1751813445451,-723.28,0.00019178,2]
[369988671,1751813445460,-677.46,0.00019178,2]
[369988673,1751813445476,-2431.67,0.00019178,2]
[369988675,1751813445485,-500.0,0.00019178,2]
[369988677,1751813445495,-460.0,0.00019178,2]
[369988679,1751813445503,-410.73184236,0.00019178,2]
[369988681,1751813445513,-2837.33,0.00019178,2]
[369988683,1751813445521,-460.0,0.00019178,2]
[369988685,1751813445530,-2080.08,0.00019178,2]
[369988687,1751813445539,-460.0,0.00019178,2]
[369988689,1751813445549,-726.72,0.00019178,2]
[369988691,1751813445558,-607.4,0.00019178,2]
[369988693,1751813445568,-527.74,0.00019178,2]
[369988695,1751813445577,-460.0,0.00019178,2]
[369988697,1751813445586,-460.0,0.00019178,2]
[369988699,1751813445596,-460.0,0.00019178,2]
[369988701,1751813445605,-211.13081529,0.00019178,2]
[369988705,1751813445638,-620.56918471,0.00019178,2]
[369988707,1751813445647,-460.0,0.00019178,2]
[369988709,1751813445659,-460.0,0.00019178,2]
[369988712,1751813445668,-568.96,0.00019178,2]
[369988713,1751813445678,-1261.46,0.00019178,2]
[369988715,1751813445687,-65.26738049,0.00019178,2]
[369988718,1751813445698,-1248.49261951,0.00019178,2]
[369988720,1751813445707,-467.53757303,0.00019178,2]
[369988721,1751813445716,-188.79290526,0.00019178,2]
[369988723,1751813445727,-1014.19,0.00019178,2]
[369988725,1751813445736,-352.4869022,0.00019178,2]
[369988730,1751813445767,-107.5130978,0.00019178,2]
[369988732,1751813445776,-460.0,0.00019178,2]
[369988733,1751813445785,-300.0,0.00019178,2]
[369988735,1751813445794,-460.0,0.00019178,2]
[369988737,1751813445803,-580.28,0.00019178,2]
[369988739,1751813445813,-460.0,0.00019178,2]
[369988741,1751813445822,-460.0,0.00019178,2]
[369988743,1751813445831,-746.2,0.00019178,2]
[369988745,1751813445840,-761.6,0.00019178,2]
[369988747,1751813445849,-460.0,0.00019178,2]
[369988749,1751813445859,-582.27,0.00019178,2]
[369988751,1751813445868,-966.91,0.00019178,2]
[369988753,1751813445877,-870.79,0.00019178,2]
[369988756,1751813445887,-460.0,0.00019178,2]
[369988757,1751813445897,-460.0,0.00019178,2]
[369988759,1751813445906,-1056.21,0.00019178,2]
[369988761,1751813445915,-271.1619152,0.00019178,2]
[369988763,1751813445925,-802.4,0.00019178,2]
[369988765,1751813445934,-460.0,0.00019178,2]
[369988767,1751813445943,-4522.22,0.00019178,2]
[369988769,1751813445953,-460.0,0.00019178,2]
[369988771,1751813445962,-460.0,0.00019178,2]
[369988773,1751813445972,-1196.6,0.00019178,2]
[369988775,1751813445981,-460.0,0.00019178,2]
[369988777,1751813445991,-409.31,0.00019178,2]
[369988780,1751813446000,-4495.41,0.00019178,2]
[369988782,1751813446013,-498.56,0.00019178,2]
[369988784,1751813446022,-460.0,0.00019178,2]
[369988786,1751813446031,-1191.61,0.00019178,2]
[369988789,1751813446041,-822.2,0.00019178,2]
[369988791,1751813446051,-460.0,0.00019178,2]
[369988793,1751813446062,-460.0,0.00019178,2]
[369988795,1751813446072,-460.0,0.00019178,2]
[369988797,1751813446082,-1512.92,0.00019178,2]
[369988799,1751813446092,-460.0,0.00019178,2]
[369988802,1751813446102,-460.0,0.00019178,2]
[369988805,1751813446112,-460.0,0.00019178,2]
[369988809,1751813446122,-460.0,0.00019178,2]
[369988813,1751813446132,-460.0,0.00019178,2]
[369988816,1751813446142,-460.0,0.00019178,2]
[369988819,1751813446151,-460.0,0.00019178,2]
[369988822,1751813446161,-460.0,0.00019178,2]
[369988825,1751813446171,-460.0,0.00019178,2]
[369988828,1751813446181,-752.82,0.00019178,2]
[369988831,1751813446190,-556.99,0.00019178,2]
[369988834,1751813446200,-460.0,0.00019178,2]
[369988837,1751813446210,-701.33,0.00019178,2]
[369988840,1751813446220,-460.0,0.00019178,2]
[369988843,1751813446230,-561.61,0.00019178,2]
[369988846,1751813446239,-751.2,0.00019178,2]
[369988848,1751813446249,-460.0,0.00019178,2]
[369988850,1751813446258,-503.78,0.00019178,2]
[369988852,1751813446269,-460.0,0.00019178,2]
[369988854,1751813446278,-723.26,0.00019178,2]
[369988856,1751813446288,-460.0,0.00019178,2]
[369988858,1751813446299,-676.29,0.00019178,2]
[369988860,1751813446309,-460.0,0.00019178,2]
[369988862,1751813446319,-2103.79,0.00019178,2]
[369988864,1751813446329,-621.49,0.00019178,2]
[369988866,1751813446339,-460.0,0.00019178,2]
[369988868,1751813446349,-1500.0,0.00019178,2]
[369988870,1751813446358,-460.0,0.00019178,2]
[369988872,1751813446368,-706.63,0.00019178,2]
[369988874,1751813446377,-1141.89,0.00019178,2]
[369988876,1751813446387,-460.0,0.00019178,2]
[369988878,1751813446396,-585.55,0.00019178,2]
[369988880,1751813446406,-460.0,0.00019178,2]
[369988882,1751813446416,-483.4,0.00019178,2]
[369988884,1751813446426,-460.0,0.00019178,2]
[369988886,1751813446436,-460.0,0.00019178,2]
[369988888,1751813446446,-460.0,0.00019178,2]
[369988890,1751813446455,-2535.5,0.00019178,2]
[369988892,1751813446465,-676.05,0.00019178,2]
[369988893,1751813446476,-460.0,0.00019178,2]
[369988896,1751813446486,-500.0,0.00019178,2]
[369988897,1751813446495,-460.0,0.00019178,2]
[369988899,1751813446505,-500.0,0.00019178,2]
[369988902,1751813446514,-179.335428,0.00019178,2]
[369988904,1751813446524,-460.0,0.00019178,2]
[369988905,1751813446534,-1358.9,0.00019178,2]
[369988907,1751813446543,-857.39,0.00019178,2]
[369988909,1751813446553,-460.0,0.00019178,2]
[369988910,1751813446564,-460.0,0.00019178,2]
[369988912,1751813446575,-556.94,0.00019178,2]
[369988914,1751813446585,-397.84624593,0.00019178,2]
[369988916,1751813446596,-460.0,0.00019178,2]
[369988918,1751813446606,-460.0,0.00019178,2]
[369988920,1751813446616,-460.0,0.00019178,2]
[369988922,1751813446625,-460.0,0.00019178,2]
[369988924,1751813446635,-1403.73,0.00019178,2]
[369988926,1751813446645,-530.84,0.00019178,2]
[369988928,1751813446655,-1173.03,0.00019178,2]
[369988930,1751813446665,-828.18,0.00019178,2]
[369988932,1751813446675,-909.58,0.00019178,2]
[369988934,1751813446686,-658.91,0.00019178,2]
[369988936,1751813446696,-1000.0,0.00019178,2]
[369988938,1751813446705,-460.0,0.00019178,2]
[369988940,1751813446714,-586.83598826,0.00019178,2]
[369988942,1751813446724,-1037.88,0.00019178,2]
[369988944,1751813446735,-460.0,0.00019178,2]
[369988946,1751813446745,-460.0,0.00019178,2]
[369988948,1751813446756,-725.12,0.00019178,2]
[369988950,1751813446768,-500.99,0.00019178,2]
[369988952,1751813446778,-460.0,0.00019178,2]
[369988954,1751813446787,-2243.73,0.00019178,2]
[369988956,1751813446797,-460.0,0.00019178,2]
[369988958,1751813446806,-460.0,0.00019178,2]
[369988960,1751813446816,-460.0,0.00019178,2]
[369988962,1751813446825,-1259.69,0.00019178,2]
[369988964,1751813446835,-460.0,0.00019178,2]
[369988965,1751813446845,-965.66,0.00019178,2]
[369988968,1751813446855,-460.0,0.00019178,2]
[369988969,1751813446865,-460.0,0.00019178,2]
[369988970,1751813446875,-460.0,0.00019178,2]
[369988971,1751813446884,-587.81,0.00019178,2]
[369988972,1751813446894,-460.0,0.00019178,2]
[369988973,1751813446904,-460.0,0.00019178,2]
[369988974,1751813446914,-721.39,0.00019178,2]
[369988975,1751813446924,-1227.8,0.00019178,2]
[369988976,1751813446934,-720.36,0.00019178,2]
[369988977,1751813446944,-595.57,0.00019178,2]
[369988978,1751813446954,-460.0,0.00019178,2]
[369988979,1751813446964,-460.0,0.00019178,2]
[369988980,1751813446976,-293.58849206,0.00019178,2]
[369988981,1751813446988,-612.66,0.00019178,2]
[369988982,1751813446998,-52960.46,0.00019178,2]
[369988983,1751813447009,-717.32,0.00019178,2]
[369988984,1751813447020,-508.47,0.00019178,2]
[369988985,1751813447031,-1337.38,0.00019178,2]
[369988986,1751813447040,-460.0,0.00019178,2]
[369988988,1751813447050,-559.43,0.00019178,2]
[369988990,1751813447060,-705.86,0.00019178,2]
[369988992,1751813447070,-666.75,0.00019178,2]
[369988995,1751813447080,-1199.86,0.00019178,2]
[369988997,1751813447090,-460.0,0.00019178,2]
[369988999,1751813447100,-460.0,0.00019178,2]
[369989001,1751813447110,-460.0,0.00019178,2]
[369989003,1751813447119,-460.0,0.00019178,2]
[369989005,1751813447130,-495.05476169,0.00019178,2]
[369989007,1751813447140,-813.05,0.00019178,2]
[369989009,1751813447150,-460.0,0.00019178,2]
[369989011,1751813447160,-648.13,0.00019178,2]
[369989013,1751813447169,-652.35,0.00019178,2]
[369989015,1751813447182,-460.0,0.00019178,2]
[369989017,1751813447192,-1694.54,0.00019178,2]
[369989019,1751813447201,-601.84,0.00019178,2]
[369989021,1751813447211,-245.12422,0.00019178,2]
[369989023,1751813447223,-1075.5,0.00019178,2]
[369989025,1751813447233,-460.0,0.00019178,2]
[369989027,1751813447243,-460.0,0.00019178,2]
[369989029,1751813447253,-583.45,0.00019178,2]
[369989031,1751813447263,-460.0,0.00019178,2]
[369989033,1751813447273,-611.73,0.00019178,2]
[369989035,1751813447282,-555.49,0.00019178,2]
[369989037,1751813447292,-460.0,0.00019178,2]
[369989039,1751813447302,-460.0,0.00019178,2]
[369989042,1751813447312,-1479.14,0.00019178,2]
[369989044,1751813447322,-460.0,0.00019178,2]
[369989046,1751813447333,-460.0,0.00019178,2]
[369989048,1751813447342,-460.0,0.00019178,2]
[369989050,1751813447352,-460.0,0.00019178,2]
[369989052,1751813447362,-672.92,0.00019178,2]
[369989054,1751813447371,-463.79438783,0.00019178,2]
[369989056,1751813447381,-151.0,0.00019178,2]
[369989058,1751813447391,-562.71,0.00019178,2]
[369989060,1751813447401,-460.0,0.00019178,2]
[369989062,1751813447411,-460.0,0.00019178,2]
[369989064,1751813447421,-380.0,0.00019178,2]
[369989066,1751813447430,-463.68539933,0.00019178,2]
[369989068,1751813447440,-460.0,0.00019178,2]
[369989070,1751813447449,-460.0,0.00019178,2]
[369989072,1751813447459,-790.4,0.00019178,2]
[369989074,1751813447469,-460.0,0.00019178,2]
[369989076,1751813447479,-587.4,0.00019178,2]
[369989078,1751813447488,-460.0,0.00019178,2]
[369989081,1751813447499,-537.09,0.00019178,2]
[369989083,1751813447508,-460.0,0.00019178,2]
[369989085,1751813447517,-460.0,0.00019178,2]
[369989087,1751813447527,-1436.88,0.00019178,2]
[369989089,1751813447537,-538.28,0.00019178,2]
[369989090,1751813447546,-460.0,0.00019178,2]
[369989092,1751813447555,-460.0,0.00019178,2]
[369989094,1751813447565,-497.30175083,0.00019178,2]
[369989096,1751813447576,-460.0,0.00019178,2]
[369989098,1751813447587,-3895.13,0.00019178,2]
[369989100,1751813447596,-4390.43,0.00019178,2]
[369989102,1751813447606,-460.0,0.00019178,2]
[369989104,1751813447616,-514.56,0.00019178,2]
[369989106,1751813447625,-460.0,0.00019178,2]
[369989108,1751813447635,-460.0,0.00019178,2]
[369989110,1751813447645,-866.08,0.00019178,2]
[369989112,1751813447655,-462.11,0.00019178,2]
[369989114,1751813447665,-8831.44,0.00019178,2]
[369989116,1751813447675,-460.0,0.00019178,2]
[369989118,1751813447685,-775.01,0.00019178,2]
[369989121,1751813447696,-460.0,0.00019178,2]
[369989123,1751813447706,-460.0,0.00019178,2]
[369989125,1751813447715,-612.81,0.00019178,2]
[369989127,1751813447727,-1081.03,0.00019178,2]
[369989129,1751813447737,-460.0,0.00019178,2]
[369989130,1751813447748,-460.0,0.00019178,2]
[369989133,1751813447758,-460.0,0.00019178,2]
[369989135,1751813447767,-1223.24,0.00019178,2]
[369989137,1751813447777,-460.0,0.00019178,2]
[369989139,1751813447787,-460.0,0.00019178,2]
[369989141,1751813447798,-460.0,0.00019178,2]
[369989143,1751813447808,-460.0,0.00019178,2]
[369989145,1751813447818,-916.47,0.00019178,2]
[369989147,1751813447828,-560.96,0.00019178,2]
[369989149,1751813447838,-460.0,0.00019178,2]
[369989151,1751813447848,-2359.47,0.00019178,2]
[369989153,1751813447857,-2245.01,0.00019178,2]
[369989155,1751813447867,-460.0,0.00019178,2]
[369989157,1751813447877,-808.31,0.00019178,2]
[369989159,1751813447887,-460.0,0.00019178,2]
[369989161,1751813447897,-808.0,0.00019178,2]
[369989163,1751813447907,-654.22,0.00019178,2]
[369989165,1751813447917,-512.2,0.00019178,2]
[369989167,1751813447927,-609.8,0.00019178,2]
[369989169,1751813447937,-973.28,0.00019178,2]
[369989171,1751813447947,-744.14,0.00019178,2]
[369989173,1751813447957,-572.56,0.00019178,2]
[369989175,1751813447967,-463.52989614,0.00019178,2]
[369989177,1751813447978,-460.0,0.00019178,2]
[369989179,1751813447988,-460.0,0.00019178,2]
[369989181,1751813447998,-567.11,0.00019178,2]
[369989183,1751813448010,-1552.68,0.00019178,2]
[369989185,1751813448020,-460.0,0.00019178,2]
[369989187,1751813448029,-460.0,0.00019178,2]
[369989189,1751813448040,-2302.65,0.00019178,2]
[369989191,1751813448050,-632.53,0.00019178,2]
[369989193,1751813448060,-460.0,0.00019178,2]
[369989195,1751813448070,-460.0,0.00019178,2]
[369989197,1751813448080,-483.37530302,0.00019178,2]
[369989199,1751813448090,-460.0,0.00019178,2]
[369989201,1751813448101,-476.94,0.00019178,2]
[369989203,1751813448112,-460.0,0.00019178,2]
[369989205,1751813448122,-554.31,0.00019178,2]
[369989207,1751813448132,-460.0,0.00019178,2]
[369989209,1751813448142,-901.6,0.00019178,2]
[369989211,1751813448152,-487.4,0.00019178,2]
[369989244,1751813448458,-460.0,0.00019178,2]
[369989246,1751813448467,-1080.32,0.00019178,2]
[369989248,1751813448478,-460.0,0.00019178,2]
[369989250,1751813448487,-525.02,0.00019178,2]
[369989252,1751813448497,-906.96,0.00019178,2]
[369989254,1751813448506,-681.9,0.00019178,2]
[369989256,1751813448516,-462.98900325,0.00019178,2]
[369989258,1751813448526,-460.0,0.00019178,2]
[369989259,1751813448535,-460.0,0.00019178,2]
[369989261,1751813448545,-460.0,0.00019178,2]
[369989264,1751813448555,-460.0,0.00019178,2]
[369989265,1751813448564,-579.42,0.00019178,2]
[369989267,1751813448574,-298.19523031,0.00019178,2]
[369989269,1751813448584,-460.0,0.00019178,2]
[369989271,1751813448594,-460.0,0.00019178,2]
[369989273,1751813448604,-460.0,0.00019178,2]
[369989276,1751813448614,-523.43,0.00019178,2]
[369989277,1751813448623,-460.0,0.00019178,2]
[369989279,1751813448633,-460.0,0.00019178,2]
[369989281,1751813448643,-520.0,0.00019178,2]
[369989283,1751813448653,-828.58,0.00019178,2]
[369989285,1751813448662,-795.23,0.00019178,2]
[369989287,1751813448672,-460.0,0.00019178,2]
[369989289,1751813448681,-645.94,0.00019178,2]
[369989291,1751813448690,-2899.14,0.00019178,2]
[369989293,1751813448700,-597.25,0.00019178,2]
[369989295,1751813448709,-460.0,0.00019178,2]
[369989297,1751813448718,-460.0,0.00019178,2]
[369989299,1751813448728,-460.0,0.00019178,2]
[369989301,1751813448737,-460.0,0.00019178,2]
[369989303,1751813448747,-460.0,0.00019178,2]
[369989305,1751813448756,-460.0,0.00019178,2]
[369989307,1751813448765,-460.0,0.00019178,2]
[369989309,1751813448774,-460.0,0.00019178,2]
[369989311,1751813448783,-460.0,0.00019178,2]
[369989313,1751813448793,-1804.76,0.00019178,2]
[369989315,1751813448802,-1076.06,0.00019178,2]
[369989317,1751813448811,-460.0,0.00019178,2]
[369989319,1751813448821,-1170.11,0.00019178,2]
[369989321,1751813448830,-460.0,0.00019178,2]
[369989323,1751813448840,-460.0,0.00019178,2]
[369989325,1751813448850,-151.0,0.00019178,2]
[369989327,1751813448859,-170.67,0.00019178,2]
[369989329,1751813448868,-204.83562566,0.00019178,2]
[369989331,1751813448877,-204.83562566,0.00019178,2]
[369989333,1751813448886,-168.0,0.00019178,2]
[369989335,1751813448897,-159.1,0.00019179,2]
[369989337,1751813448906,-150.0,0.0001918,2]
[369989339,1751813448915,-150.0,0.00019181,2]
[369989341,1751813448925,-150.0,0.00019182,2]
[369989343,1751813448935,-150.0,0.00019187,2]
[369989345,1751813448944,-150.0,0.00019194,2]
[369989347,1751813448954,-150.0,0.00019203,2]
[369989349,1751813448963,-150.0,0.00019204,2]
[369989351,1751813448972,-150.0,0.00019207,2]
[369989353,1751813448982,-150.0,0.00019215,2]
[369989355,1751813448991,-150.0,0.00019215,2]